Cogmind - Beta 17 @@@ ROGUE MODE // 2026.08.21 @ 17:12:18 Player: LandRaider Result: Destroyed by V0-4IC(R) with Subdweller Machine Gun Performance ------------- Evolutions (0) 0 Regions Visited (2) 400 Robots Destroyed (37) 185 Value Destroyed (940) 940 Prototype IDs (0) 0 Alien Tech Used (0) 0 Bonus (0) 0 TOTAL SCORE: 1525 Bonus ------- None Cogmind --------- Core Integrity 0/250 Matter 20/300 Energy 98/100 System Corruption 0% Temperature Cool (1) Movement Treading (160) Location -10/Subcaves Parts ------- > --- POWER (1) -------- (None) > --- PROPULSION (2) --- Light Treads > --- UTILITY (2) ------ Large Storage Unit > --- WEAPON (2) ------- (None) > --- INVENTORY (15) --- Light Treads Light Treads Large Storage Unit Signal Interpreter Seismic Detector ECM Suite Core Shielding Gun Armor Assault Rifle Assault Rifle Assault Rifle Assault Rifle Datajack Mining Laser Peak State ------------ > --- POWER ------------ Light Nuclear Core > --- PROPULSION ------- Aluminum Leg Aluminum Leg > --- UTILITY ---------- Large Storage Unit Machine Analyzer > --- WEAPON ----------- Assault Rifle Light Assault Rifle > --- INVENTORY -------- Ion Engine Light Treads Light Treads Medium Storage Unit Large Storage Unit ECM Suite Light Assault Rifle Grenade Launcher Datajack Mining Laser [Rating: 12] Favorites ----------- Power Light Nuclear Core Engine Ion Engine Power Core Light Nuclear Core Propulsion Aluminum Leg Treads Light Treads Leg Aluminum Leg Utility Large Storage Unit Device Seismic Detector Storage Large Storage Unit Processor Machine Analyzer Weapon Light Assault Rifle Energy Gun Small Laser Ballistic Gun Light Assault Rifle Launcher Grenade Launcher Special Melee Weapon Datajack Build | -11 -10 -10 ------- Run | Yrd Mat Sub Slots Evolved . | . . . Power . | . . . Propulsion . | . . . Utility . | . . . Weapon . | . . . Parts Attached 31 | 9 19 3 Power 5 | 1 3 1 Engine 4 | 1 2 1 Core 1 | . 1 . Reactor . | . . . Propulsion 9 | 4 5 . Treads 4 | 2 2 . Leg 5 | 2 3 . Wheel . | . . . Hover . | . . . Flight . | . . . Utility 6 | 2 4 . Device 2 | 1 1 . Storage 3 | 1 2 . Processor 1 | . 1 . Hackware . | . . . Protection . | . . . Artifact . | . . . Weapon 11 | 2 7 2 Energy Gun 2 | 1 1 . Energy Cannon . | . . . Ballistic Gun 6 | 1 5 . Ballistic Cannon . | . . . Launcher 2 | . . 2 Special Weapon . | . . . Impact Weapon . | . . . Slashing Weapon . | . . . Piercing Weapon . | . . . Special Melee Weapon 1 | . 1 . Unidentified Prototypes . | . . . Parts Lost 11 | . 4 7 Power 3 | . 1 2 Propulsion 1 | . . 1 Utility 2 | . 1 1 Weapon 5 | . 2 3 Highest Loss Streak 3 | . 2 3 To Critical Strikes . | . . . Average Backups 12 | 5 12 14 Power 1 | . 1 . Propulsion 2 | 3 2 2 Utility 4 | . 4 5 Weapon 3 | . 3 5 Tool/Special . | . . . Unused Backups 13 | . 3 10 Power . | . . . Propulsion 3 | . 2 1 Utility 6 | . 1 5 Weapon 4 | . . 4 Tool/Special . | . . . Average Slot Usage (%) 95 | . 98 80 Engine 3 | . 3 4 Core 7 | . 10 . Treads 8 | . 3 27 Leg 19 | . 24 . Device 2 | . 3 . Storage 14 | . 14 14 Processor 10 | . 9 12 Energy Gun 6 | . 8 . Ballistic Gun 16 | . 19 8 Launcher 2 | . . 13 Peak Build Rating 12 | 8 12 12 Average Rating 10 | 4 10 9 On Entrance 6 | . 8 12 Avg Prop Armor Cover (%) . | . . . Naked Turns . | . . . Heaviest Build 30 | 13 29 30 Greatest Support 40 | 20 40 40 Greatest Overweight (x) 3 | 3 1 1 Average Overweight (x) . | 1 . . Largest Inventory Capacity 15 | 8 15 15 Average Capacity 13 | 7 13 15 Most Carried 15 | 8 15 15 Average Carried 12 | 5 12 14 Final Capacity 15 | 8 15 15 Final Carried 15 | 8 15 14 Class Distribution -------------------- 60% | Mutant 39% | Scavenger-Mutant Dominant Class ---------------- Scavenger-Mutant | -10/Materials Mutant | -10/Subcaves Resources | -11 -10 -10 ----------- Run | Yrd Mat Sub Matter Collected 686 | 297 371 18 Remotely . | . . . Salvage Created 1039 | 159 624 256 Parts 68 | 12 46 10 Haulers Intercepted 1 | . 1 . Recyclers Shooed . | . . . Parts Field Recycled . | . . . Retrieved Matter . | . . . Parts Self-Destructed . | . . . Prevented . | . . . Parts Restored . | . . . Kills | -11 -10 -10 ------- Run | Yrd Mat Sub Combat Hostiles Destroyed 26 | . 16 10 Guns 18 | . 16 2 AOE 8 | . . 8 Classes Destroyed 10 | 2 6 2 Tunneler 3 | 3 . . Hauler 1 | . 1 . Recycler 1 | 1 . . Mechanic 1 | . 1 . Operator 2 | . 2 . Watcher 3 | . 3 . Swarmer 6 | . 6 . Grunt 10 | . 10 . Sentry 1 | . . 1 Subdweller 9 | . . 9 Best Kill Streak 4 | 4 4 3 Combat Bots Only 4 | . 4 3 Max Kills in Single Turn 2 | 1 1 2 Gunslinging . | . . . Exploded 2 | . . 2 Melee . | . . . Uniques/NPCs Destroyed . | . . . Combat | -11 -10 -10 -------- Run | Yrd Mat Sub Hostile Shots Fired 163 | . 114 49 Missed 51 | . 32 19 Hits 112 | . 82 30 Projectile 112 | . 82 30 AOE 2 | . . 2 Critical Strikes 4 | . 2 2 Damage Taken 1562 | . 824 738 Core 259 | . 135 124 Absorbed by Shields . | . . . Core Remaining (%) 100 | 100 . . Volleys Fired 110 | 7 75 28 Largest 2 | 2 2 2 Hottest 60 | 60 60 50 Shots Fired 192 | 14 140 38 Gun 165 | 14 140 11 Cannon . | . . . Launcher 27 | . . 27 Special . | . . . Kinetic 129 | 7 111 11 Thermal 36 | 7 29 . Explosive 27 | . . 27 Electromagnetic . | . . . Robot Hit Streak 13 | 3 9 13 Robot Miss Streak 4 | 1 4 1 Penetration Max . | . . . Secondary Targets 2 | . 2 . Max Gunslinging Chain 1 | . 1 . Shots Hit Robots 119 | 8 89 22 Core Hits 68 | 6 40 22 Critical Kills . | . . . Critical Parts Destroyed . | . . . Critical Strikes . | . . . Melee Attacks 2 | . 2 . Impact . | . . . Slashing . | . . . Piercing . | . . . Sneak Attacks 2 | . 2 . Combat Hostiles . | . . . Follow-up Attacks . | . . . Damage Inflicted 2134 | 87 882 1165 Guns 1021 | 87 882 52 Cannons . | . . . Explosions 1113 | . . 1113 Melee . | . . . Ramming . | . . . Kinetic 804 | 54 698 52 Thermal 217 | 33 184 . Explosive 1113 | . . 1113 Electromagnetic . | . . . Impact . | . . . Slashing . | . . . Piercing . | . . . Highest Corruption . | . . . Average Corruption . | . . . Corruption Purged . | . . . Corruption Blocked . | . . . Overload Shots . | . . . Overflow Damage 3 | . . 3 Projectiles . | . . . Explosions 3 | . . 3 Melee . | . . . Knockbacks . | . . . Impact . | . . . Kinetic . | . . . Secondary . | . . . Self-Inflicted Damage 52 | . . 52 Shots 2 | . . 2 Rammed . | . . . Targets Rammed . | . . . Kicked . | . . . Crushed . | . . . Highest Temperature 90 | 20 90 . Average Temperature 21 | 15 21 . Received Heat Transfer 345 | . 297 48 Siege Activations . | . . . Martial Activations . | . . . Shielding Activations . | . . . Robots Disrupted . | . . . Combat Hostiles . | . . . Robots Corrupted . | . . . Combat Hostiles . | . . . Parts Fried . | . . . Impact Corruptions . | . . . Robots Melted . | . . . Combat Hostiles . | . . . Parts Melted . | . . . Heat Transferred 500 | 75 425 . Parts Sabotaged . | . . . Parts Stolen . | . . . Parts Stripped . | . . . Power Chain Reactions . | . . . Alert | -11 -10 -10 ------- Run | Yrd Mat Sub Maximum Alert Level . | . . . Low Security (%) 100 | 100 100 . Level 1 . | . . . Level 2 . | . . . Level 3 . | . . . Level 4 . | . . . Level 5 . | . . . High Security . | . . . Max Security . | . . . Peak Influence 181 | 10 181 . Initial . | . . . Average 73 | 1 79 . Influence Increases 567 | 20 527 20 Destroy 0b10 Robot/C 340 | . 320 20 Destroy 0b10 Robot/NC 55 | 20 35 . Destroy Leader 78 | . 78 . Successful Hack 19 | . 19 . Select Force Hacks 30 | . 30 . Lose Combat Pursuer 45 | . 45 . Influence Decreases 567 | 20 504 43 Entered New Map 12 | . . 12 Time Decay 505 | 20 464 21 Lost Part 50 | . 40 10 Squads Dispatched 4 | . 4 . Investigation 2 | . 2 . Extermination . | . . . Reinforcement 2 | . 2 . Assault . | . . . Garrison . | . . . Intercept . | . . . Searches Triggered . | . . . Construction Impeded . | . . . Haulers Reinforced . | . . . Active Scanning Responses . | . . . Cargo Convoy Interrupts . | . . . Stealth | -11 -10 -10 --------- Run | Yrd Mat Sub Distress Signals 1 | . 1 . Communications Jammed . | . . . Distress Signals . | . . . Times Spotted 42 | . 30 12 Peak Tracking Total 4 | . 4 3 Tactical Retreats 2 | . 2 . Traps | -11 -10 -10 ------- Run | Yrd Mat Sub Traps Triggered 1 | . 1 . Indirectly . | . . . Trap Hack Attempts 19 | . 19 . Triggered . | . . . Disarmed 1 | . 1 . Reprogrammed . | . . . Reused . | . . . Traps Extracted . | . . . Installed . | . . . Triggered . | . . . Machines | -11 -10 -10 ---------- Run | Yrd Mat Sub Machines Disabled . | . . . Max in Single Turn . | . . . Machines Repaired . | . . . Machines Dismantled . | . . . Machines Sabotaged . | . . . Overloaded Fab Kills . | . . . Hacking | -11 -10 -10 --------- Run | Yrd Mat Sub Machines Accessed 9 | . 9 . Terminals 7 | . 7 . Fabricators . | . . . Repair Stations . | . . . Recycling Units 2 | . 2 . Scanalyzers . | . . . Garrison Access . | . . . Total Hacks 17 | . 17 . Successful 9 | . 9 . Failed 8 | . 8 . Catastrophic . | . . . Database Lockouts . | . . . Manual 13 | . 13 . Terminals 15 | . 15 . Fabricators . | . . . Repair Stations . | . . . Recycling Units 2 | . 2 . Scanalyzers . | . . . Garrison Access . | . . . Terminal Hacks 2 | . 2 . Branch Access Points 1 | . 1 . Zone Layout 1 | . 1 . Fabricator Hacks . | . . . Repair Station Hacks . | . . . Recycling Unit Hacks . | . . . Scanalyzer . | . . . Garrison Access Hacks . | . . . Unauthorized Hacks 7 | . 7 . Terminals 6 | . 6 . Botnet 6 | . 6 . Fabricators . | . . . Repair Stations . | . . . Recycling Units 1 | . 1 . Tunnel 1 | . 1 . Scanalyzers . | . . . Garrison Access . | . . . Data Cores Recovered . | . . . Used . | . . . Hacking Detections 3 | . 3 . Full Trace Events . | . . . Feedback Events . | . . . Feedback Blocked . | . . . Robot Schematics Acquired . | . . . Robots Built . | . . . Authchips . | . . . Time . | . . . Total Robot Build Rating . | . . . Part Schematics Acquired . | . . . Parts Built . | . . . Authchips . | . . . Time . | . . . Total Part Build Rating . | . . . Part Studies Acquired . | . . . Parts Repaired . | . . . Time . | . . . Parts Recycled . | . . . Recycled Matter . | . . . Retrieved Matter . | . . . Retrieved Components . | . . . Parts Scanalyzed . | . . . Part Schematics Acquired . | . . . Parts Damaged . | . . . Bothacking | -11 -10 -10 ------------ Run | Yrd Mat Sub Used RIF Installer . | . . . Robots Hacked 1 | . 1 . Non-combat 1 | . 1 . Combat . | . . . Robot Hacks Applied 1 | . 1 . no_distress 1 | . 1 . Relay Couplers Released . | . . . Fabnet Peak Effective % . | . . . Robots Rewired . | . . . Allies Hacked . | . . . Hacks Repelled . | . . . Allies | -11 -10 -10 -------- Run | Yrd Mat Sub Total Allies . | . . . Largest Group . | . . . Highest-Rated Group . | . . . Highest-Rated Ally . | . . . Total Orders . | . . . Ally Attacks . | . . . Total Damage . | . . . Kills . | . . . Allies Corrupted . | . . . Allies Melted . | . . . Intel | -11 -10 -10 ------- Run | Yrd Mat Sub Active Infowar (turns) 1848 | 17 1459 372 Seismic 384 | 17 367 . Machine Analysis 1462 | . 1090 372 ECM 2 | . 2 . Robot Analysis Total . | . . . Derelict Logs Recovered 1 | . . 1 Drone Launches . | . . . Drone Recoveries . | . . . Exploration | -11 -10 -10 ------------- Run | Yrd Mat Sub Turns Passed 2082 | 130 1541 411 Spaces Moved 1008 | 67 730 211 Core 39 | 39 . . Treads 311 | . 100 211 Legs 658 | 28 630 . Wheels . | . . . Hover . | . . . Flight . | . . . Fastest Speed 50 | 50 120 160 Average Speed 162 | 132 165 161 Slowest Speed 240 | 200 240 240 Overloaded Moves . | . . . Propulsion Burnouts . | . . . Robots Hopped . | . . . Potential Cave-ins . | . . . Cave-ins Triggered . | . . . Exploration Rate (%) 41 | 5 97 21 Regions Visited 2 Branch Regions 1 Pre-discovered Areas 1 | . 1 . Known Exits Taken . | . . . Unknown Exits Taken 2 | 1 1 . Scrap Searched . | . . . Spaces Dug . | . . . Terrain Destroyed 114 | . . 114 Melee . | . . . Projectile . | . . . AOE 114 | . . 114 Terrain Rammed . | . . . Walls Destroyed . | . . . Machines Disabled . | . . . Actions | -11 -10 -10 --------- Run | Yrd Mat Sub Total 1280 | 92 943 245 Wait 64 | . 64 . Move 1006 | 66 729 211 Hop . | . . . Pick Up 25 | 10 13 2 Fast Attach 14 | 5 9 . Attach 7 | 2 3 2 Detach 2 | . 2 . Swap 12 | 2 9 1 Drop 19 | . 18 1 Fire 110 | 7 75 28 Melee 2 | . 2 . Ram . | . . . Kick . | . . . Crush . | . . . Escape Stasis . | . . . Rewire . | . . . Trap 19 | . 19 . Miscellaneous . | . . . Route ------- -11/Scrapyard -10/Materials (discovered 6 exits: [*Mat x3] / *Min x2 / [*Sub]) -10/Subcaves History --------- Turn | Location | Event 21 | -11/Scrapyard | Discovered new exit (range 16) 131 | -11/Scrapyard | Entered Materials 159 | -10/Materials | Discovered new exit (range 15) 207 | -10/Materials | Identified exit to Mines 312 | -10/Materials | Build established: Mutant 843 | -10/Materials | Core integrity fell below 50% 982 | -10/Materials | Discovered new exit (range 16) 995 | -10/Materials | Build established: Scavenger-Mutant 1133 | -10/Materials | Discovered new exit (range 11) 1335 | -10/Materials | Discovered new exit (range 16) 1664 | -10/Materials | Discovered new exit (range 7) 1672 | -10/Materials | Entered Subcaves 1673 | -10/Subcaves | Approached by a straggling Scientist 1676 | -10/Subcaves | Ambushed by Subdwellers from Twisted Machinery 1703 | -10/Subcaves | Learned Materials stockpile data 1778 | -10/Subcaves | A Subdweller sparked back to life 1778 | -10/Subcaves | A Subdweller sparked back to life 1778 | -10/Subcaves | A Subdweller sparked back to life 1798 | -10/Subcaves | Found Prototype Protection 1818 | -10/Subcaves | Build established: Mutant 1914 | -10/Subcaves | Core integrity fell below 20% 1946 | -10/Subcaves | Lost 3 parts (1p2w) 2023 | -10/Subcaves | Ambushed by Subdweller buried in earth 2083 | -10/Subcaves | Destroyed by V0-4IC(R) with Subdweller Machine Gun Last Messages --------------- 01798_ Acquired Prototype Protection. 01802_ The unstable cave ceiling collapses. 01908_ Grenade Launcher destroyed. 01908_ Destroyed Grenade Launcher. 01908_ Assault Rifle destroyed. 01908_ Destroyed Assault Rifle. 01912_ TZ-MIQ(R) destroyed. 01915_ Ion Engine destroyed. 01916_ 5E-2DN(R) destroyed. 01918_ EH-TGR(R) destroyed. 01926_ Acquired 15 matter. 01947_ The unstable cave ceiling collapses. 02001_ Y-45 Defender destroyed. 02006_ The unstable cave ceiling collapses. 02024_ HX-BSO(R): "ARGHSUB!" 02025_ Destroyed Sub. Power Source. 02027_ HX-BSO(R) destroyed. 02044_ Machine Analyzer destroyed. 02068_ Lgt. Treads destroyed. 02075_ Grenade Launcher destroyed. Map ----- +----------------------------------------------------+ | ??????????????????????????????????????????????? | | ???##?????????????????????????????????????????? | | ## ????????????????????????????????????????? | | ????????????????????????????????????????? | | # ???????????????????????????????????????? | | # #??????????????????????????????????????? | | #? #????###??????????????????????????????? | | #??# #???# ##?????????????????????????????? | | #???# ?### #?????????????????????????????? | | #????# ## #?????????????????????????????? | | #????# #??????? ?????????????????????? | | #????# #??????? ?????????????????????? | | ##???## ##??????? ?????????????????????? | | ##???# | #??????? ?????????????????????? | | ##??# & ##??????? ?????????????????????? | | ##?# ##??????? ?????????????????????? | | ### # #??????? ??##?????????????????? | | #### ###??????? ## ??????????????????? | | #?# ##???????? ??????????????????? | | #### ##??????? ??????????????????? | | ### #??????? #??????????????????? | | #####??## #??????????????????? | | ## ##?? ##?????????????????? | | #?? #?????????????????? | | ## ##### #??????????????????? | | ### ### ##### ## #@ #??????????????????? | | #?###?### #??## #??????????????????? | | #???????# #??# #??????????????????? | | ??????? ## ### ####???????????????? | | ??????# ##### #?# ##??????????????? | | #% #?????# ???## #?## #??????????????? | | # ??????## ????###??### #??????????????? | | ? ???????# ??????????##RR ##??????????????? | | ??????????## ???????????# #???????????????? | | ????????????## #????????## ##???????????????? | | ?????????????# ####?### ##????????????????? | | ???????????### ## ## ##????????????????? | | ??????????? #????????????????? | | ?????????????????# #????????????????? | | ?????????????????##### # ##????????????????? | | ??????????????######### ###?????????????????? | | ??????????????# # # ##???????????????????? | | ??????????????# ##????????????????????? | | ??????????????# # #?????????????????????? | | ??????????????# # #?????????????????????? | | ??????????????# #?????????????????????? | | ??????????????# ##????????????????????? | | ??????????????# # ####?????????????????? | | ??????????????## #### #?????????????????? | | ???????????????#????# #?????????????????? | +----------------------------------------------------+ Best States ------------- Heat Dissipation 25 Energy Generation 14 Energy Capacity 250 Matter Stores 300 Matter Capacity 300 Sight Range 16 Terrain Scan Density 10 Evasion (%) 55 Recoil Reduction 2 Item Schematics ----------------- None Robot Schematics ------------------ None Fabricated ------------ Nothing Repaired ---------- Nothing Studied --------- None Alien Tech Used ----------------- None Achievements -------------- None Challenges ------------ None Game ------ Seed DispersionLinearReprisal Manual? 0 Play Time 00:17:49 Cumulative 94.0 hours Start 2026.08.21 @ 16:18:36 End 2026.08.21 @ 17:12:18 Sessions 1 Manual Loads 0 Difficulty Rogue Special Mode None Game No. 88 Rogue 86 Adventurer 2 Explorer 0 Win Type - Total 0 Types 0/0/0/0/0/0/0/0/0/0 Lore% 45 Gallery% 39 Achievement% 31 Wizard Run 0 Options --------- Layout 0 ASCII 0 Keyboard 0 Movement Mouse Keybinds 0 Fullscreen 2 Font 24/Smallcaps Map View 76x50 Zoom Use 0% Tactical HUD 1 Map Filters NONE Filters NONE Steam 1 RUN: 1727085f-903a-463c-ba28-debd46ae0001